[Event "*** Titled Tuesday Blitz"]
[Site "Chess.com"]
[Date "2020.03.03"]
[Round "3"]
[White "Vusatiuk_Vladimir"]
[Black "MartinCerveny"]
[Result "0-1"]
[WhiteElo "2373"]
[BlackElo "2613"]
[TimeControl "180+1"]
[EndTime "13:31:29 PST"]
[Termination "MartinCerveny won by resignation"]

1. e4 {[%clk 0:03:00.9]} 1... c5 {[%clk 0:02:59.6]} 2. Nf3 {[%clk 0:03:01.2]}
2... d6 {[%clk 0:02:59.6]} 3. d4 {[%clk 0:03:01]} 3... cxd4 {[%clk 0:03:00.5]}
4. Qxd4 {[%clk 0:03:01.6]} 4... Nc6 {[%clk 0:02:58.5]} 5. Qe3 {[%clk 0:03:01.6]}
5... g6 {[%clk 0:02:56.7]} 6. c4 {[%clk 0:02:58.7]} 6... Qa5+ {[%clk 0:02:47.1]}
7. Bd2 {[%clk 0:02:41]} 7... Qc5 {[%clk 0:02:40.6]} 8. Qc3 {[%clk 0:02:35.5]}
8... Nf6 {[%clk 0:02:35.8]} 9. Be3 {[%clk 0:02:28]} 9... Qb4 {[%clk 0:02:31.4]}
10. Bd3 {[%clk 0:02:23.4]} 10... Bg7 {[%clk 0:02:30]} 11. O-O {[%clk 0:02:19.1]}
11... Nh5 {[%clk 0:02:20.3]} 12. Nd4 {[%clk 0:01:57.4]} 12... Qxc3 {[%clk
0:02:15.1]} 13. bxc3 {[%clk 0:01:56.1]} 13... Bd7 {[%clk 0:02:13.3]} 14. Nxc6
{[%clk 0:01:49.7]} 14... Bxc6 {[%clk 0:02:11.8]} 15. c5 {[%clk 0:01:49.8]} 15...
dxc5 {[%clk 0:02:09.3]} 16. Bxc5 {[%clk 0:01:49.1]} 16... Nf4 {[%clk 0:02:07.1]}
17. Rd1 {[%clk 0:01:39.7]} 17... b6 {[%clk 0:02:04.3]} 18. Ba3 {[%clk
0:01:25.4]} 18... O-O-O {[%clk 0:01:57.3]} 19. Ba6+ {[%clk 0:01:22.1]} 19... Kc7
{[%clk 0:01:57.2]} 20. Nd2 {[%clk 0:01:20.9]} 20... e6 {[%clk 0:01:47.9]} 21.
Nc4 {[%clk 0:01:08]} 21... Ne2+ {[%clk 0:01:21.5]} 22. Kf1 {[%clk 0:01:06.2]}
22... Nxc3 {[%clk 0:01:21.6]} 23. Rxd8 {[%clk 0:00:35.8]} 23... Rxd8 {[%clk
0:01:19.9]} 24. e5 {[%clk 0:00:29.4]} 24... b5 {[%clk 0:01:08.5]} 25. Bd6+
{[%clk 0:00:26.6]} 25... Kd7 {[%clk 0:01:08.5]} 26. Na5 {[%clk 0:00:20.2]} 26...
Bf8 {[%clk 0:00:58.1]} 27. Rc1 {[%clk 0:00:16.6]} 27... b4 {[%clk 0:00:52.6]}
28. Nxc6 {[%clk 0:00:11.5]} 28... Kxc6 {[%clk 0:00:50.7]} 29. Bxf8 {[%clk
0:00:12.1]} 29... Rxf8 {[%clk 0:00:49.9]} 30. a3 {[%clk 0:00:13]} 30... Kb6
{[%clk 0:00:40.5]} 31. axb4 {[%clk 0:00:11.5]} 31... Nd5 {[%clk 0:00:41]} 32. b5
{[%clk 0:00:11.2]} 32... Nb4 {[%clk 0:00:37.6]} 33. f4 {[%clk 0:00:06.8]} 33...
Rd8 {[%clk 0:00:36.8]} 34. g3 {[%clk 0:00:06.1]} 34... h5 {[%clk 0:00:35]} 35.
Kg2 {[%clk 0:00:04.6]} 35... Rd2+ {[%clk 0:00:34.2]} 36. Kh3 {[%clk 0:00:04.6]}
36... Rd7 {[%clk 0:00:19.8]} 37. Rc8 {[%clk 0:00:04.7]} 37... Nxa6 {[%clk
0:00:19.1]} 38. bxa6 {[%clk 0:00:05.6]} 38... Kxa6 {[%clk 0:00:19.8]} 39. Kh4
{[%clk 0:00:05.9]} 39... Kb5 {[%clk 0:00:20]} 40. Kg5 {[%clk 0:00:06.8]} 40...
a5 {[%clk 0:00:20]} 41. Rb8+ {[%clk 0:00:07.4]} 41... Ka4 {[%clk 0:00:19.6]} 42.
Kf6 {[%clk 0:00:08.3]} 42... Ka3 {[%clk 0:00:18.7]} 43. Rf8 {[%clk 0:00:08.8]}
43... a4 {[%clk 0:00:18.4]} 44. Rxf7 {[%clk 0:00:09.7]} 44... Rxf7+ {[%clk
0:00:17.9]} 45. Kxf7 {[%clk 0:00:10.6]} 45... Kb3 {[%clk 0:00:17.7]} 46. Kxe6
{[%clk 0:00:11.5]} 46... a3 {[%clk 0:00:18.4]} 47. Kf7 {[%clk 0:00:12.4]} 47...
a2 {[%clk 0:00:19]} 48. e6 {[%clk 0:00:13.3]} 48... a1=Q {[%clk 0:00:18.9]} 49.
e7 {[%clk 0:00:14.2]} 49... Qa7 {[%clk 0:00:14.9]} 50. Kf8 {[%clk 0:00:13.3]}
50... Qc5 {[%clk 0:00:14.7]} 51. Kf7 {[%clk 0:00:12.1]} 51... Qf5+ {[%clk
0:00:14.3]} 52. Kg8 {[%clk 0:00:11.9]} 52... Qe6+ {[%clk 0:00:14.2]} 53. Kf8
{[%clk 0:00:12.8]} 53... Qf6+ {[%clk 0:00:14.4]} 54. Ke8 {[%clk 0:00:13]} 54...
Kb4 {[%clk 0:00:14.5]} 55. Kd7 {[%clk 0:00:13.9]} 55... Qf5+ {[%clk 0:00:14]}
56. Kd6 {[%clk 0:00:14]} 56... Qf7 {[%clk 0:00:13.3]} 57. Kd7 {[%clk 0:00:14.2]}
57... Qd5+ {[%clk 0:00:13.7]} 58. Kc7 {[%clk 0:00:13.4]} 58... Qe6 {[%clk
0:00:13.5]} 59. Kd8 {[%clk 0:00:13.8]} 59... Qd6+ {[%clk 0:00:13.8]} 60. Ke8
{[%clk 0:00:14.7]} 60... Kc5 {[%clk 0:00:13.7]} 61. Kf7 {[%clk 0:00:15.2]} 61...
Qd7 {[%clk 0:00:13.6]} 62. Kxg6 {[%clk 0:00:13.6]} 62... Qxe7 {[%clk 0:00:13.4]}
63. Kxh5 {[%clk 0:00:14.5]} 63... Kd6 {[%clk 0:00:13.8]} 64. h4 {[%clk
0:00:12.3]} 64... Ke6 {[%clk 0:00:14.7]} 65. g4 {[%clk 0:00:11.1]} 65... Kf6
{[%clk 0:00:14.4]} 66. g5+ {[%clk 0:00:10.6]} 66... Kf5 {[%clk 0:00:14.5]} 67.
g6 {[%clk 0:00:11.1]} 67... Qf6 {[%clk 0:00:14.3]} 0-1

[Event "*** Titled Tuesday Blitz"]
[Site "Chess.com"]
[Date "2020.03.03"]
[Round "3"]
[White "Bryakin_Mikhail"]
[Black "Vaathi_Coming"]
[Result "1/2-1/2"]
[WhiteElo "2669"]
[BlackElo "2825"]
[TimeControl "180+1"]
[EndTime "13:31:31 PST"]
[Termination "Game drawn by repetition"]

1. d4 {[%clk 0:02:24.1]} 1... c6 {[%clk 0:03:00.9]} 2. c4 {[%clk 0:02:15]} 2...
d5 {[%clk 0:03:01.8]} 3. Nf3 {[%clk 0:02:14.5]} 3... Nf6 {[%clk 0:03:01.4]} 4.
g3 {[%clk 0:02:13.8]} 4... g6 {[%clk 0:03:00.2]} 5. Nbd2 {[%clk 0:02:11.8]} 5...
Bg7 {[%clk 0:03:00.4]} 6. Bg2 {[%clk 0:02:12.4]} 6... O-O {[%clk 0:03:00.7]} 7.
O-O {[%clk 0:02:12.8]} 7... a5 {[%clk 0:02:59.7]} 8. b3 {[%clk 0:02:11]} 8...
Bf5 {[%clk 0:02:58.3]} 9. a3 {[%clk 0:02:09.1]} 9... b5 {[%clk 0:02:56.5]} 10.
Bb2 {[%clk 0:02:05.6]} 10... Nbd7 {[%clk 0:02:54.5]} 11. cxb5 {[%clk 0:01:51.9]}
11... cxb5 {[%clk 0:02:55.4]} 12. a4 {[%clk 0:01:45.6]} 12... b4 {[%clk
0:02:54.1]} 13. Rc1 {[%clk 0:01:44]} 13... Qb6 {[%clk 0:02:51]} 14. Nh4 {[%clk
0:01:36.7]} 14... Rac8 {[%clk 0:02:45.5]} 15. Nxf5 {[%clk 0:01:36.1]} 15... gxf5
{[%clk 0:02:46.4]} 16. e3 {[%clk 0:01:33.2]} 16... e6 {[%clk 0:02:45.8]} 17. Qe2
{[%clk 0:01:32.9]} 17... Rfd8 {[%clk 0:02:32.3]} 18. h4 {[%clk 0:01:32.7]} 18...
Ne8 {[%clk 0:02:32.1]} 19. Rfd1 {[%clk 0:01:26.8]} 19... Nd6 {[%clk 0:02:29.8]}
20. Qf1 {[%clk 0:01:27]} 20... Nf6 {[%clk 0:02:26.6]} 21. Rxc8 {[%clk
0:01:26.6]} 21... Rxc8 {[%clk 0:02:27.5]} 22. Rc1 {[%clk 0:01:27.1]} 22... Rc6
{[%clk 0:02:25.5]} 23. Rxc6 {[%clk 0:01:26.3]} 23... Qxc6 {[%clk 0:02:26.4]} 24.
Qc1 {[%clk 0:01:26.8]} 24... Qxc1+ {[%clk 0:02:25.2]} 25. Bxc1 {[%clk
0:01:27.7]} 25... Nfe4 {[%clk 0:02:19.4]} 26. Nxe4 {[%clk 0:01:27.8]} 26... fxe4
{[%clk 0:02:19.6]} 27. f3 {[%clk 0:01:19.4]} 27... f5 {[%clk 0:02:19.2]} 28. f4
{[%clk 0:01:15.4]} 28... Kf7 {[%clk 0:02:09.8]} 29. Bf1 {[%clk 0:01:15.6]} 29...
Ke7 {[%clk 0:02:07.3]} 30. Be2 {[%clk 0:01:15]} 30... Ne8 {[%clk 0:02:04.3]} 31.
Kg2 {[%clk 0:01:08.3]} 31... Nf6 {[%clk 0:02:03.1]} 32. Kh3 {[%clk 0:01:08.8]}
32... Nd7 {[%clk 0:01:56.3]} 33. Bd2 {[%clk 0:01:05.4]} 33... Nb8 {[%clk
0:01:52.5]} 34. Bb5 {[%clk 0:01:05.5]} 34... Kd6 {[%clk 0:01:48.3]} 35. g4
{[%clk 0:01:04.8]} 35... Nc6 {[%clk 0:01:43.1]} 36. Bxc6 {[%clk 0:01:04.5]}
36... Kxc6 {[%clk 0:01:44]} 37. g5 {[%clk 0:01:02.6]} 37... h5 {[%clk
0:01:36.4]} 38. gxh6 {[%clk 0:00:58.2]} 38... Bxh6 {[%clk 0:01:36.3]} 39. h5
{[%clk 0:00:58.2]} 39... Kd7 {[%clk 0:01:34.4]} 40. Be1 {[%clk 0:00:58.7]} 40...
e5 {[%clk 0:01:12.5]} 41. dxe5 {[%clk 0:00:50.4]} 41... Ke6 {[%clk 0:01:09.4]}
42. Bd2 {[%clk 0:00:34.8]} 42... Bf8 {[%clk 0:01:05.4]} 43. Kg2 {[%clk 0:00:34]}
43... Kf7 {[%clk 0:00:59.2]} 44. Be1 {[%clk 0:00:28.2]} 44... Be7 {[%clk
0:00:52.4]} 45. Kh3 {[%clk 0:00:22.5]} 45... Kg7 {[%clk 0:00:48.1]} 46. Bh4
{[%clk 0:00:17.9]} 46... Bc5 {[%clk 0:00:46.5]} 47. e6 {[%clk 0:00:13]} 47...
Bxe3 {[%clk 0:00:45.3]} 48. h6+ {[%clk 0:00:12.8]} 48... Kg6 {[%clk 0:00:42.3]}
49. h7 {[%clk 0:00:05.4]} 49... Bd4 {[%clk 0:00:40.9]} 50. Bg5 {[%clk
0:00:02.1]} 50... e3 {[%clk 0:00:35.5]} 51. Kg2 {[%clk 0:00:02.4]} 51... e2
{[%clk 0:00:33.7]} 52. Bh4 {[%clk 0:00:02.7]} 52... Bf6 {[%clk 0:00:13.9]} 53.
Bxf6 {[%clk 0:00:01.8]} 53... e1=Q {[%clk 0:00:14]} 54. h8=Q {[%clk 0:00:02.7]}
54... Qe2+ {[%clk 0:00:14.3]} 55. Kg3 {[%clk 0:00:02.4]} 55... Qe3+ {[%clk
0:00:12]} 56. Kg2 {[%clk 0:00:02.1]} 56... Qe2+ {[%clk 0:00:11.7]} 57. Kg3
{[%clk 0:00:02.6]} 57... Qe3+ {[%clk 0:00:09]} 58. Kg2 {[%clk 0:00:02.9]} 58...
Qe2+ {[%clk 0:00:08.7]} 1/2-1/2

[Event "*** Titled Tuesday Blitz"]
[Site "Chess.com"]
[Date "2020.03.03"]
[Round "3"]
[White "SahajGrover"]
[Black "RaphCamora"]
[Result "1-0"]
[WhiteElo "2716"]
[BlackElo "2444"]
[TimeControl "180+1"]
[EndTime "13:31:35 PST"]
[Termination "SahajGrover won by resignation"]

1. d4 {[%clk 0:03:00.9]} 1... d5 {[%clk 0:02:58.3]} 2. c4 {[%clk 0:03:01.1]}
2... e6 {[%clk 0:02:58]} 3. Nf3 {[%clk 0:03:00.3]} 3... Nf6 {[%clk 0:02:57.1]}
4. Nc3 {[%clk 0:03:00.6]} 4... c6 {[%clk 0:02:57.1]} 5. cxd5 {[%clk 0:02:47.1]}
5... exd5 {[%clk 0:02:56.3]} 6. Bg5 {[%clk 0:02:47.7]} 6... Be7 {[%clk
0:02:44.7]} 7. e3 {[%clk 0:02:46.1]} 7... Bf5 {[%clk 0:02:43]} 8. Bd3 {[%clk
0:02:43.8]} 8... Bxd3 {[%clk 0:02:42.7]} 9. Qxd3 {[%clk 0:02:44.7]} 9... O-O
{[%clk 0:02:43.3]} 10. O-O {[%clk 0:02:45.3]} 10... Nbd7 {[%clk 0:02:43.8]} 11.
Rab1 {[%clk 0:02:44.7]} 11... a5 {[%clk 0:02:40.5]} 12. a3 {[%clk 0:02:45.2]}
12... Re8 {[%clk 0:02:38.2]} 13. Ne5 {[%clk 0:02:45.3]} 13... Ne4 {[%clk
0:02:25.4]} 14. Bf4 {[%clk 0:02:02.5]} 14... Nxe5 {[%clk 0:01:52.3]} 15. Bxe5
{[%clk 0:01:59.3]} 15... f6 {[%clk 0:01:52.3]} 16. Bf4 {[%clk 0:01:55.3]} 16...
Bd6 {[%clk 0:01:45.6]} 17. Bg3 {[%clk 0:01:52.2]} 17... Qe7 {[%clk 0:01:29.4]}
18. Nxe4 {[%clk 0:01:48.3]} 18... dxe4 {[%clk 0:01:26.8]} 19. Bxd6 {[%clk
0:01:44.7]} 19... Qxd6 {[%clk 0:01:26.3]} 20. Qb3+ {[%clk 0:01:45.3]} 20... Kf8
{[%clk 0:01:20]} 21. Rfc1 {[%clk 0:01:39.4]} 21... Re7 {[%clk 0:01:19.7]} 22.
Rc5 {[%clk 0:01:37.6]} 22... a4 {[%clk 0:01:18.9]} 23. Qc4 {[%clk 0:01:26.7]}
23... Qe6 {[%clk 0:01:16.7]} 24. Qb4 {[%clk 0:01:25.5]} 24... Kg8 {[%clk
0:01:12.3]} 25. Rbc1 {[%clk 0:01:20.1]} 25... Rd7 {[%clk 0:01:12.1]} 26. h3
{[%clk 0:01:13.5]} 26... h6 {[%clk 0:01:00.9]} 27. Qc4 {[%clk 0:01:13.3]} 27...
Qxc4 {[%clk 0:00:59.3]} 28. R1xc4 {[%clk 0:01:14]} 28... Ra6 {[%clk 0:00:44.6]}
29. Rb4 {[%clk 0:00:53.4]} 29... b5 {[%clk 0:00:36.6]} 30. d5 {[%clk 0:00:53.3]}
30... cxd5 {[%clk 0:00:20]} 31. Rd4 {[%clk 0:00:52.6]} 31... Rb6 {[%clk
0:00:16.9]} 32. Rdxd5 {[%clk 0:00:51.8]} 32... Rxd5 {[%clk 0:00:16.7]} 33. Rxd5
{[%clk 0:00:52.4]} 33... b4 {[%clk 0:00:17.6]} 34. Rd4 {[%clk 0:00:52.4]} 34...
bxa3 {[%clk 0:00:15.4]} 35. bxa3 {[%clk 0:00:52.6]} 35... f5 {[%clk 0:00:16.3]}
36. Rxa4 {[%clk 0:00:52.2]} 36... Rb1+ {[%clk 0:00:15.7]} 37. Kh2 {[%clk
0:00:52.1]} 37... Kf7 {[%clk 0:00:16.3]} 38. Ra6 {[%clk 0:00:50.2]} 38... Ra1
{[%clk 0:00:14.2]} 39. Kg3 {[%clk 0:00:49]} 39... Ra2 {[%clk 0:00:14.8]} 40. f3
{[%clk 0:00:45.6]} 40... exf3 {[%clk 0:00:14.3]} 41. gxf3 {[%clk 0:00:46.5]}
41... Kg8 {[%clk 0:00:13.9]} 42. Kf4 {[%clk 0:00:45.5]} 42... Rh2 {[%clk
0:00:11]} 43. Kxf5 {[%clk 0:00:39.3]} 43... Rxh3 {[%clk 0:00:10.8]} 44. Kg4
{[%clk 0:00:39.4]} 44... Rh2 {[%clk 0:00:11.2]} 45. a4 {[%clk 0:00:36.4]} 45...
Kh7 {[%clk 0:00:10.2]} 46. a5 {[%clk 0:00:35.5]} 46... Rg2+ {[%clk 0:00:10.2]}
47. Kh3 {[%clk 0:00:34.3]} 47... Ra2 {[%clk 0:00:11.1]} 48. e4 {[%clk
0:00:33.9]} 48... g5 {[%clk 0:00:10.5]} 49. Kg4 {[%clk 0:00:29.9]} 49... Ra3
{[%clk 0:00:09.6]} 50. Ra8 {[%clk 0:00:24.7]} 50... Kg7 {[%clk 0:00:09.2]} 51.
a6 {[%clk 0:00:24.1]} 51... Ra5 {[%clk 0:00:06.3]} 52. a7 {[%clk 0:00:22.7]}
52... Ra3 {[%clk 0:00:06.3]} 53. e5 {[%clk 0:00:22.7]} 1-0

[Event "*** Titled Tuesday Blitz"]
[Site "Chess.com"]
[Date "2020.03.03"]
[Round "3"]
[White "northridgehawk"]
[Black "vova-79"]
[Result "1-0"]
[WhiteElo "2267"]
[BlackElo "2542"]
[TimeControl "180+1"]
[EndTime "13:31:44 PST"]
[Termination "northridgehawk won on time"]

1. e4 {[%clk 0:03:00.9]} 1... e6 {[%clk 0:02:58.7]} 2. Nc3 {[%clk 0:02:54]} 2...
d5 {[%clk 0:02:58.5]} 3. d4 {[%clk 0:02:53.8]} 3... dxe4 {[%clk 0:02:57.2]} 4.
Nxe4 {[%clk 0:02:54.7]} 4... Nd7 {[%clk 0:02:56.8]} 5. Bd3 {[%clk 0:02:53.6]}
5... Ngf6 {[%clk 0:02:57.7]} 6. Nf3 {[%clk 0:02:49]} 6... c5 {[%clk 0:02:57]} 7.
Qe2 {[%clk 0:02:48.6]} 7... Nxe4 {[%clk 0:02:55.6]} 8. Bxe4 {[%clk 0:02:48.1]}
8... Nf6 {[%clk 0:02:55.8]} 9. Bd3 {[%clk 0:02:42.7]} 9... cxd4 {[%clk
0:02:55.2]} 10. O-O {[%clk 0:02:40.5]} 10... Bc5 {[%clk 0:02:52.4]} 11. Rd1
{[%clk 0:02:38.7]} 11... O-O {[%clk 0:02:41.1]} 12. Bg5 {[%clk 0:02:36.5]} 12...
h6 {[%clk 0:02:39.7]} 13. Bh4 {[%clk 0:02:36.4]} 13... Qd5 {[%clk 0:02:32.8]}
14. Bxf6 {[%clk 0:02:16.2]} 14... gxf6 {[%clk 0:02:30.1]} 15. Nd2 {[%clk
0:02:15.7]} 15... Qe5 {[%clk 0:02:18.3]} 16. Qf3 {[%clk 0:02:07.7]} 16... f5
{[%clk 0:02:10.8]} 17. Re1 {[%clk 0:02:07.1]} 17... Qf6 {[%clk 0:02:09.8]} 18.
Ne4 {[%clk 0:02:06.5]} 18... Qe7 {[%clk 0:02:05.3]} 19. Ng3 {[%clk 0:01:59.8]}
19... Qg5 {[%clk 0:01:56.7]} 20. Nh5 {[%clk 0:01:37.3]} 20... Rb8 {[%clk
0:01:47.7]} 21. g3 {[%clk 0:01:36.7]} 21... b6 {[%clk 0:01:45.6]} 22. h4 {[%clk
0:01:36.6]} 22... Qg6 {[%clk 0:01:40.8]} 23. Nf4 {[%clk 0:01:30.3]} 23... Qg4
{[%clk 0:01:39.6]} 24. Qxg4+ {[%clk 0:01:16]} 24... fxg4 {[%clk 0:01:40.5]} 25.
Nh5 {[%clk 0:01:09.4]} 25... f6 {[%clk 0:01:20.8]} 26. Bc4 {[%clk 0:00:56.3]}
26... Kf7 {[%clk 0:01:19.8]} 27. Nf4 {[%clk 0:00:40.1]} 27... Re8 {[%clk
0:01:17.7]} 28. Rad1 {[%clk 0:00:30.6]} 28... a5 {[%clk 0:01:06.5]} 29. Bd3
{[%clk 0:00:29.8]} 29... f5 {[%clk 0:01:03.5]} 30. Bc4 {[%clk 0:00:26.3]} 30...
b5 {[%clk 0:01:00.3]} 31. Bd3 {[%clk 0:00:26.3]} 31... Rb6 {[%clk 0:00:57.6]}
32. Re5 {[%clk 0:00:22.1]} 32... Bd6 {[%clk 0:00:54.3]} 33. Rxb5 {[%clk
0:00:21.9]} 33... Rxb5 {[%clk 0:00:44]} 34. Bxb5 {[%clk 0:00:21.8]} 34... Rd8
{[%clk 0:00:44.9]} 35. Nd3 {[%clk 0:00:19.7]} 35... e5 {[%clk 0:00:43]} 36. Bc4+
{[%clk 0:00:19.8]} 36... Kf6 {[%clk 0:00:41.8]} 37. c3 {[%clk 0:00:18.3]} 37...
dxc3 {[%clk 0:00:39.5]} 38. bxc3 {[%clk 0:00:19.2]} 38... Bb7 {[%clk 0:00:38.6]}
39. Nb2 {[%clk 0:00:18.5]} 39... Bc7 {[%clk 0:00:35.9]} 40. Rxd8 {[%clk
0:00:17.7]} 40... Bxd8 {[%clk 0:00:36.8]} 41. Bf1 {[%clk 0:00:17.7]} 41... e4
{[%clk 0:00:32.7]} 42. Bc4 {[%clk 0:00:17.3]} 42... Bb6 {[%clk 0:00:31]} 43. Kf1
{[%clk 0:00:17.7]} 43... e3 {[%clk 0:00:29.7]} 44. Ke2 {[%clk 0:00:18.1]} 44...
exf2 {[%clk 0:00:28.9]} 45. Nd3 {[%clk 0:00:17.7]} 45... Bf3+ {[%clk 0:00:25.4]}
46. Kf1 {[%clk 0:00:17.4]} 46... Be4 {[%clk 0:00:20.7]} 47. Nxf2 {[%clk
0:00:17.3]} 47... Bc2 {[%clk 0:00:19.6]} 48. Nd3 {[%clk 0:00:16.6]} 48... Bc7
{[%clk 0:00:17.7]} 49. Nf4 {[%clk 0:00:16.2]} 49... Bxf4 {[%clk 0:00:15.8]} 50.
gxf4 {[%clk 0:00:17.1]} 50... Ke7 {[%clk 0:00:14.4]} 51. Kf2 {[%clk 0:00:17.4]}
51... Kd6 {[%clk 0:00:14.8]} 52. Kg3 {[%clk 0:00:17.6]} 52... Kc5 {[%clk
0:00:15.7]} 53. Be6 {[%clk 0:00:17]} 53... Be4 {[%clk 0:00:12.2]} 54. h5 {[%clk
0:00:16.4]} 54... Kb5 {[%clk 0:00:11.4]} 55. Bb3 {[%clk 0:00:15]} 55... a4
{[%clk 0:00:09.8]} 56. Be6 {[%clk 0:00:14.7]} 56... a3 {[%clk 0:00:09.3]} 57.
Bb3 {[%clk 0:00:14.7]} 57... Kc5 {[%clk 0:00:08.2]} 58. Kh4 {[%clk 0:00:15]}
58... Bd5 {[%clk 0:00:05.4]} 59. Bc2 {[%clk 0:00:14]} 59... Be6 {[%clk
0:00:03.8]} 60. Kg3 {[%clk 0:00:12.7]} 60... Bxa2 {[%clk 0:00:02]} 61. Bxf5
{[%clk 0:00:12.2]} 1-0

[Event "*** Titled Tuesday Blitz"]
[Site "Chess.com"]
[Date "2020.03.03"]
[Round "3"]
[White "amiralfio"]
[Black "marianokar"]
[Result "1/2-1/2"]
[WhiteElo "2602"]
[BlackElo "2384"]
[TimeControl "180+1"]
[EndTime "13:31:45 PST"]
[Termination "Game drawn - insufficient material"]

1. d4 {[%clk 0:03:00.9]} 1... Nf6 {[%clk 0:02:59.2]} 2. Bf4 {[%clk 0:03:01.4]}
2... e6 {[%clk 0:02:56.1]} 3. e3 {[%clk 0:03:01.1]} 3... d5 {[%clk 0:02:55.4]}
4. Nf3 {[%clk 0:03:00.9]} 4... Bd6 {[%clk 0:02:54.5]} 5. Bg3 {[%clk 0:03:01.1]}
5... O-O {[%clk 0:02:38.8]} 6. Nbd2 {[%clk 0:03:00.2]} 6... c5 {[%clk 0:02:38]}
7. c3 {[%clk 0:02:58.5]} 7... Nc6 {[%clk 0:02:37.4]} 8. Bd3 {[%clk 0:02:54.1]}
8... b6 {[%clk 0:02:36.9]} 9. e4 {[%clk 0:02:54.5]} 9... Be7 {[%clk 0:02:33.9]}
10. e5 {[%clk 0:02:53.9]} 10... Nh5 {[%clk 0:02:33.8]} 11. Ng5 {[%clk
0:02:54.4]} 11... Bxg5 {[%clk 0:02:04.5]} 12. Qxh5 {[%clk 0:02:50.4]} 12... g6
{[%clk 0:01:49.1]} 13. Qe2 {[%clk 0:02:49.3]} 13... cxd4 {[%clk 0:01:32.6]} 14.
h4 {[%clk 0:02:47.2]} 14... Bh6 {[%clk 0:01:00.4]} 15. h5 {[%clk 0:02:41.2]}
15... dxc3 {[%clk 0:00:56.9]} 16. bxc3 {[%clk 0:02:42.1]} 16... Kg7 {[%clk
0:00:29.1]} 17. hxg6 {[%clk 0:01:46]} 17... hxg6 {[%clk 0:00:28.4]} 18. Bh4
{[%clk 0:01:45.2]} 18... Bg5 {[%clk 0:00:27.6]} 19. Bg3 {[%clk 0:01:41.8]} 19...
Rh8 {[%clk 0:00:25.8]} 20. O-O-O {[%clk 0:01:39.7]} 20... Bd7 {[%clk 0:00:22.7]}
21. f4 {[%clk 0:01:39.1]} 21... Bh4 {[%clk 0:00:20.7]} 22. Bxh4 {[%clk 0:01:27]}
22... Rxh4 {[%clk 0:00:20.2]} 23. g3 {[%clk 0:01:27.6]} 23... Rh8 {[%clk
0:00:17.9]} 24. Nf3 {[%clk 0:01:23.5]} 24... Qe7 {[%clk 0:00:18]} 25. Ng5 {[%clk
0:01:23]} 25... Qa3+ {[%clk 0:00:16.9]} 26. Kd2 {[%clk 0:00:45.1]} 26... Qxa2+
{[%clk 0:00:16.6]} 27. Ke3 {[%clk 0:00:43.1]} 27... Qxe2+ {[%clk 0:00:15.6]} 28.
Bxe2 {[%clk 0:00:43.9]} 28... Na5 {[%clk 0:00:13.7]} 29. Ba6 {[%clk 0:00:33.4]}
29... Bc6 {[%clk 0:00:12]} 30. Rxh8 {[%clk 0:00:31.4]} 30... Rxh8 {[%clk
0:00:10.9]} 31. Nf3 {[%clk 0:00:22.8]} 31... Nb3 {[%clk 0:00:10.6]} 32. Nd4
{[%clk 0:00:15.1]} 32... Nxd4 {[%clk 0:00:06.5]} 33. cxd4 {[%clk 0:00:16]} 33...
Rb8 {[%clk 0:00:05.4]} 34. Rc1 {[%clk 0:00:16]} 34... Be8 {[%clk 0:00:05.3]} 35.
Rc7 {[%clk 0:00:14.4]} 35... b5 {[%clk 0:00:04.4]} 36. Kd2 {[%clk 0:00:07.2]}
36... b4 {[%clk 0:00:04.7]} 37. Kc2 {[%clk 0:00:07.6]} 37... b3+ {[%clk
0:00:04.5]} 38. Kb2 {[%clk 0:00:07.4]} 38... Rb4 {[%clk 0:00:04.6]} 39. Rxa7
{[%clk 0:00:04.7]} 39... Rxd4 {[%clk 0:00:03.6]} 40. Kxb3 {[%clk 0:00:05.3]}
40... Re4 {[%clk 0:00:02.7]} 41. Rc7 {[%clk 0:00:05.9]} 41... Re3+ {[%clk
0:00:02.6]} 42. Rc3 {[%clk 0:00:06.4]} 42... Rxc3+ {[%clk 0:00:02.3]} 43. Kxc3
{[%clk 0:00:07.3]} 43... Kf8 {[%clk 0:00:02.6]} 44. Kd4 {[%clk 0:00:07.8]} 44...
Ke7 {[%clk 0:00:03.5]} 45. Kc5 {[%clk 0:00:08.3]} 45... Kd8 {[%clk 0:00:03.5]}
46. Kd6 {[%clk 0:00:07.9]} 46... Ba4 {[%clk 0:00:03]} 47. Bd3 {[%clk 0:00:08]}
47... Bb3 {[%clk 0:00:02.9]} 48. Kc5 {[%clk 0:00:05.2]} 48... Kc7 {[%clk
0:00:02.5]} 49. Kb4 {[%clk 0:00:05.1]} 49... Bd1 {[%clk 0:00:02.9]} 50. Kc5
{[%clk 0:00:05.4]} 50... Bf3 {[%clk 0:00:02.3]} 51. Bb5 {[%clk 0:00:05.5]} 51...
Be4 {[%clk 0:00:02]} 52. Be8 {[%clk 0:00:05.4]} 52... Bf5 {[%clk 0:00:02.6]} 53.
Bxf7 {[%clk 0:00:05.5]} 53... Kd8 {[%clk 0:00:02.8]} 54. Kd4 {[%clk 0:00:04.4]}
54... Ke7 {[%clk 0:00:03.7]} 55. Bg8 {[%clk 0:00:02.9]} 55... Be4 {[%clk
0:00:04]} 56. g4 {[%clk 0:00:01.9]} 56... Bc2 {[%clk 0:00:02.8]} 57. Bh7 {[%clk
0:00:01.2]} 57... Kf7 {[%clk 0:00:02.2]} 58. f5 {[%clk 0:00:02.1]} 58... exf5
{[%clk 0:00:02.4]} 59. gxf5 {[%clk 0:00:03]} 59... Bxf5 {[%clk 0:00:01.9]} 60.
Kxd5 {[%clk 0:00:03.5]} 60... Be6+ {[%clk 0:00:02.8]} 61. Kd4 {[%clk 0:00:03.5]}
61... Kg7 {[%clk 0:00:02.8]} 62. Bxg6 {[%clk 0:00:04.1]} 62... Kxg6 {[%clk
0:00:03.7]} 63. Kc5 {[%clk 0:00:02.2]} 63... Kf5 {[%clk 0:00:04.6]} 64. Kd6
{[%clk 0:00:03.1]} 64... Bg8 {[%clk 0:00:03.7]} 65. e6 {[%clk 0:00:03.7]} 65...
Bxe6 {[%clk 0:00:03.1]} 1/2-1/2